bitfinex/quotes_SOLUSD_20250918
["timestamp","ask_amount","ask_price","bid_price","bid_amount"]
[1758183047792,0.69,244.7,244.69,0.28432314]
[1758183048192,2.17525753,244.7,244.67,13.59559401]
[1758183048400,1.48525753,244.68,244.67,13.59559401]
[1758183048597,2.17525753,244.68,244.63,13.59559401]
[1758183048905,2.17525753,244.67,244.61,13.59559401]
[1758183049209,2.17525753,244.66,244.59,0.03]
[1758183049504,2.17525753,244.66,244.61,13.59559401]
[1758183049689,0.69,244.65,244.6,0.28432314]
[1758183049901,4.77756196,244.65,244.59,13.62559401]
[1758183050084,0.69,244.64,244.6,0.14216157]
[1758183050289,0.69,244.64,244.59,13.62559401]
[1758183050496,0.69,244.63,244.6,0.28432314]
[1758183050810,0.69,244.63,244.6,0.14216157]
[1758183051102,0.69,244.63,244.6,0.28432314]
[1758183051805,0.69,244.62,244.6,13.87991715]
[1758183051984,0.69,244.62,244.61,45.09559401]
[1758183052181,0.69,244.65,244.62,13.87991715]
[1758183052511,4.14647162,244.71,244.64,0.28432314]
[1758183053191,0.69,244.7,244.64,13.87991715]
[1758183053389,0.69,244.69,244.64,13.87991715]
[1758183053589,0.69,244.68,244.67,0.28432314]
[1758183055913,0.69,244.68,244.65,13.87991715]
[1758183056091,0.69,244.67,244.65,13.87991715]
[1758183056296,0.69,244.66,244.65,13.87991715]
[1758183056903,0.69,244.66,244.65,0.28432314]
[1758183057094,0.69,244.66,244.65,13.87991715]
[1758183057706,0.69,244.68,244.65,17.96731959]
[1758183057901,0.69,244.68,244.67,0.28432314]
[1758183058216,0.69,244.7,244.67,13.87991715]
[1758183058420,0.69,244.7,244.69,13.59559401]
[1758183058717,0.06,244.71,244.7,0.28432314]
[1758183059516,0.75,244.71,244.7,0.28432314]
[1758183060711,0.06,244.71,244.7,0.28432314]
[1758183061227,0.75,244.71,244.7,0.28432314]
[1758183069213,0.75,244.71,244.69,0.28432314]
[1758183069927,7.15452864,244.71,244.66,13.59559401]
[1758183070127,0.7,244.7,244.66,13.59559401]
[1758183070316,0.7,244.69,244.66,13.59559401]
[1758183070509,0.7,244.68,244.66,13.59559401]
[1758183070705,0.7,244.67,244.66,13.73775558]
[1758183070907,0.7,244.67,244.65,80.8]
[1758183071117,4.08713777,244.67,244.66,13.59559401]
[1758183071541,4.78713777,244.67,244.66,13.59559401]
[1758183072016,7.1051449,244.67,244.61,0.03]
[1758183072224,2.31800713,244.65,244.61,0.03]
[1758183072617,0.7,244.64,244.61,0.03]
[1758183072927,4.78763897,244.64,244.61,0.03]
[1758183074625,0.7,244.67,244.61,0.31432314]
[1758183074828,0.7,244.64,244.61,0.31432314]
[1758183078531,0.7,244.68,244.61,4.40240644]
[1758183078939,0.7,244.67,244.61,0.31432314]
[1758183079925,4.08730483,244.66,244.61,0.31432314]
[1758183080437,0.7,244.65,244.61,0.03]
[1758183080651,2.31800713,244.64,244.61,0.03]
[1758183080825,0.7,244.65,244.61,0.03]
[1758183080826,2.31800713,244.62,244.61,0.03]
[1758183081325,3.01800713,244.62,244.61,0.03]
[1758183081724,0.7,244.62,244.61,0.03]
[1758183082150,4.78797318,244.62,244.61,0.03]
[1758183083448,7.10598031,244.62,244.61,0.03]
[1758183083630,4.78797318,244.62,244.61,0.03]
[1758183084031,7.10598031,244.62,244.61,0.03]
[1758183086124,0.7,244.65,244.61,0.03]
[1758183086325,0.7,244.67,244.61,0.03]
[1758183086558,0.7,244.65,244.61,0.03]
[1758183087259,0.7,244.64,244.61,0.03]
[1758183087838,0.7,244.68,244.63,13.59559401]
[1758183088135,0.7,244.68,244.64,0.28432314]
[1758183089352,4.08690807,244.69,244.64,0.28432314]
[1758183089353,0.7,244.67,244.64,0.28432314]
[1758183090148,0.7,244.66,244.64,0.28432314]
[1758183090322,4.08690807,244.69,244.64,0.28432314]
[1758183090523,0.06,244.71,244.65,14.01559401]
[1758183090726,0.06,244.7,244.67,13.59559401]
[1758183090928,0.06,244.7,244.68,13.87991715]
[1758183091528,0.06,244.7,244.68,0.28432314]
[1758183091943,0.06,244.7,244.69,14.01559401]
[1758183092139,0.06,244.7,244.69,13.59559401]
[1758183094845,0.06,244.7,244.69,14.29991715]
[1758183095238,0.06,244.7,244.69,15.93500616]
[1758183100452,0.06,244.7,244.69,15.51500616]
[1758183100656,0.06,244.7,244.69,96.31500616]
[1758183101238,0.06,244.7,244.69,127.81500616]
[1758183103153,0.06,244.7,244.69,126.17991715]
[1758183106643,0.06,244.7,244.69,45.37991715]
[1758183112459,0.06,244.74,244.73,39.87991715]
[1758183112677,0.06,244.75,244.74,13.87991715]
[1758183112845,0.1,244.79,244.76,39.87991715]
[1758183113162,0.1,244.79,244.76,71.45991715]
[1758183113464,0.1,244.79,244.76,72.28848064]
[1758183113973,0.1,244.79,244.76,76.37411554]
[1758183114863,0.1,244.79,244.77,13.87991715]
[1758183115055,0.1,244.79,244.78,45.45991715]
[1758183115960,0.78,244.79,244.78,45.45991715]
[1758183116174,0.78,244.79,244.78,45.47991715]
[1758183116758,0.1,244.79,244.78,45.47991715]
[1758183118661,0.1,244.79,244.78,126.27991715]
[1758183119162,0.1,244.79,244.78,45.47991715]
[1758183119660,0.1,244.79,244.78,45.89991715]
[1758183121156,0.1,244.83,244.82,39.59559401]
[1758183121467,0.1,244.83,244.82,71.45991715]
[1758183121967,0.1,244.83,244.82,71.86838051]
[1758183122768,0.1,244.83,244.82,46.28838051]
[1758183123070,0.1,244.87,244.83,0.28432314]
[1758183123268,0.1,244.87,244.85,13.87991715]
[1758183123460,0.1,244.87,244.86,45.45991715]
[1758183123858,0.16,244.89,244.87,13.87991715]
[1758183124169,0.16,244.89,244.88,45.45991715]
[1758183124371,0.16,244.89,244.88,45.87991715]
[1758183124959,0.16,244.89,244.88,49.96354994]
[1758183125672,0.16,244.89,244.88,36.36795593]
[1758183125873,0.1,244.9,244.88,130.76354994]
[1758183126054,0.1,244.9,244.89,13.87991715]
[1758183126247,0.1,244.9,244.89,14.29991715]
[1758183126652,0.06,244.94,244.92,39.87991715]
[1758183126861,0.06,244.94,244.89,81.6283466]
[1758183126862,0.06,244.94,244.93,49.58271631]
[1758183129087,0.1,244.96,244.95,26.28432314]
[1758183129254,0.1,244.96,244.95,71.47991715]
[1758183129867,0.81,244.96,244.95,39.87991715]
[1758183130068,0.81,244.96,244.95,71.47991715]
[1758183130455,0.1,244.96,244.95,71.47991715]
[1758183131065,0.1,244.96,244.95,75.56238295]
[1758183133363,0.1,244.96,244.95,156.36238295]
[1758183133878,0.81,244.96,244.95,156.36238295]
[1758183134269,0.1,244.96,244.95,156.36238295]
[1758183135170,0.1,244.99,244.98,43.67755988]
[1758183135356,0.1,244.99,244.98,75.52188302]
[1758183139379,0.1,244.99,244.98,156.32188302]
[1758183142892,0.1,245.09,244.98,75.52188302]
[1758183143111,0.71,245.05,245.03,13.87991715]
[1758183143267,0.71,245.07,245.06,0.14216157]
[1758183143476,0.71,245.07,245.06,45.39991715]
[1758183144372,0.1,245.09,245.07,13.59559401]
[1758183144581,0.1,245.09,245.08,49.23589432]
[1758183145097,0.81,245.09,245.08,49.23589432]
[1758183146196,0.81,245.09,245.08,49.52021746]
[1758183147594,0.1,245.09,245.08,49.52021746]
[1758183149788,0.71,245.16,245.12,39.59559401]
[1758183149989,0.71,245.16,245.13,45.41991715]
[1758183151002,0.71,245.16,245.13,49.49938518]
[1758183151178,0.81,245.14,245.13,49.49938518]
[1758183152592,0.1,245.14,245.13,49.49938518]
[1758183155585,0.1,245.19,245.17,39.87991715]
[1758183155811,0.1,245.19,245.18,45.39991715]
[1758183156515,0.76,245.19,245.18,45.39991715]
[1758183157306,0.1,245.19,245.18,45.39991715]
[1758183158403,0.76,245.19,245.18,45.39991715]
[1758183158783,0.1,245.19,245.18,45.39991715]
[1758183159384,0.76,245.19,245.18,45.39991715]
[1758183159589,0.1,245.19,245.18,45.39991715]
[1758183161110,0.76,245.19,245.18,45.39991715]
[1758183161694,0.1,245.19,245.18,45.39991715]
[1758183166203,0.16,245.19,245.18,45.39991715]
[1758183166601,0.06,245.22,245.21,26.0]
[1758183166805,0.06,245.22,245.21,71.99991715]
[1758183167913,0.06,245.22,245.21,76.07805425]
[1758183173211,0.06,245.24,245.23,17.95772166]
[1758183173412,0.72,245.24,245.23,50.01772166]
[1758183175426,0.1,245.29,245.28,0.28432314]
[1758183175722,4.07422581,245.45,245.35,13.87991715]
[1758183175924,4.07434843,245.44,245.37,13.87991715]
[1758183176098,4.07410588,245.46,245.38,45.75559401]
[1758183176298,4.07410588,245.46,245.38,46.03991715]
[1758183176606,0.82,245.39,245.38,46.03991715]
[1758183180719,0.82,245.39,245.38,13.87991715]
[1758183180926,0.82,245.39,245.38,45.97991715]
[1758183181730,0.82,245.39,245.38,13.87991715]
[1758183183320,0.1,245.39,245.38,13.87991715]
[1758183185928,0.16,245.39,245.38,13.87991715]
[1758183186516,0.16,245.39,245.38,14.29991715]
[1758183188209,0.16,245.39,245.38,13.87991715]
[1758183188426,0.16,245.39,245.38,46.37991715]
[1758183190118,0.16,245.39,245.38,45.95991715]
[1758183192321,0.16,245.39,245.38,46.45991715]
[1758183193042,0.16,245.39,245.38,46.17559401]
[1758183193216,0.16,245.39,245.38,45.67559401]
[1758183193217,0.82,245.39,245.38,45.67559401]
[1758183193530,0.82,245.39,245.38,45.81775558]
[1758183193919,0.82,245.39,245.38,45.95991715]
[1758183194435,0.16,245.39,245.38,45.95991715]
[1758183194743,0.66,245.44,245.43,13.87991715]
[1758183194952,0.66,245.44,245.43,45.91991715]
[1758183195440,0.1,245.49,245.44,0.28432314]
[1758183195727,0.66,245.46,245.45,45.91991715]
[1758183198838,0.66,245.46,245.45,13.87991715]
[1758183199717,0.66,245.46,245.45,13.59559401]
[1758183202717,0.66,245.46,245.45,13.87991715]
[1758183203017,0.76,245.49,245.46,13.87991715]
[1758183203214,0.66,245.48,245.46,13.87991715]
[1758183203423,0.66,245.47,245.46,13.87991715]
[1758183205633,0.66,245.47,245.46,13.59559401]
[1758183206026,0.66,245.47,245.45,13.73775558]
[1758183206224,0.72,245.46,245.45,13.87991715]
[1758183206618,0.72,245.46,245.45,13.59559401]
[1758183206815,0.72,245.46,245.44,0.28432314]
[1758183207125,0.66,245.45,245.44,0.28432314]
[1758183207327,0.06,245.46,245.44,0.28432314]
[1758183207542,0.06,245.46,245.45,45.83991715]
[1758183207735,0.06,245.46,245.45,13.87991715]
[1758183209344,0.72,245.46,245.45,13.87991715]
[1758183209521,0.72,245.46,245.45,45.83991715]
[1758183210819,0.06,245.46,245.45,45.83991715]
[1758183213841,0.78,245.46,245.45,13.87991715]
[1758183214024,0.78,245.46,245.45,45.79991715]
[1758183214543,0.78,245.46,245.45,13.87991715]
[1758183216346,0.78,245.46,245.45,13.59559401]
[1758183217639,0.78,245.46,245.38,13.62559401]
[1758183217640,3.08359973,245.46,245.38,13.62559401]
[1758183217842,0.72,245.45,245.38,13.62559401]
[1758183218237,0.72,245.44,245.38,13.62559401]
[1758183218542,0.72,245.43,245.38,13.62559401]
[1758183218753,0.72,245.42,245.38,13.62559401]
[1758183219122,0.72,245.41,245.38,13.62559401]
[1758183219323,0.72,245.4,245.38,13.62559401]
[1758183220465,0.72,245.43,245.39,0.28432314]
[1758183220751,0.72,245.42,245.39,0.28432314]
[1758183220926,0.72,245.41,245.39,0.28432314]
[1758183222433,0.72,245.4,245.38,13.62559401]
[1758183223243,0.72,245.39,245.38,13.62559401]
[1758183223448,0.72,245.39,245.38,13.90991715]
[1758183224171,0.72,245.39,245.38,0.03]
[1758183225860,4.07531176,245.38,245.36,0.03]
[1758183226045,6.37891149,245.38,245.36,0.03]
[1758183226250,0.72,245.37,245.36,0.03]
[1758183230962,0.72,245.37,245.36,0.03]
[1758183231661,3.02359973,245.37,245.36,0.03]
[1758183232545,0.72,245.37,245.36,0.03]
[1758183232750,3.02359973,245.37,245.36,0.03]
[1758183233352,4.07509557,245.4,245.36,0.03]
[1758183233549,4.79509557,245.4,245.36,0.03]
[1758183233754,0.72,245.39,245.36,0.03]
[1758183234138,0.72,245.38,245.36,0.03]
[1758183234552,0.72,245.37,245.36,0.03]
[1758183234878,4.07491267,245.41,245.36,0.03]
[1758183235049,0.67,245.4,245.36,0.03]
[1758183235552,0.67,245.39,245.36,0.03]
[1758183237452,0.67,245.38,245.36,0.03]
[1758183237853,0.67,245.37,245.36,0.03]
[1758183238078,0.67,245.38,245.36,0.03]
[1758183238954,4.07452177,245.43,245.36,0.03]
[1758183239267,0.67,245.4,245.36,0.03]
[1758183239762,0.67,245.39,245.36,0.03]
[1758183241471,14.26010429,245.44,245.36,0.03]
[1758183241771,0.67,245.38,245.36,0.03]
[1758183242966,16.56370402,245.44,245.36,0.03]
[1758183243173,0.7,245.37,245.36,0.03]
[1758183244555,0.06,245.39,245.36,0.03]
[1758183244874,0.76,245.39,245.36,0.03]
[1758183245966,0.7,245.38,245.36,0.03]
[1758183246372,0.06,245.39,245.36,0.03]
[1758183246781,0.7,245.38,245.36,0.03]
[1758183247660,0.7,245.37,245.36,0.03]
[1758183247858,0.06,245.39,245.36,0.03]
[1758183248668,0.06,245.39,245.37,13.59559401]
[1758183248992,0.06,245.39,245.38,0.28432314]
[1758183250682,0.06,245.39,245.38,17.95522891]
[1758183252573,0.06,245.39,245.38,18.40522891]
[1758183252976,0.06,245.39,245.38,17.95522891]
[1758183255087,0.06,245.39,245.38,18.40522891]
[1758183256377,0.06,245.39,245.38,99.20522891]
[1758183260472,0.06,245.39,245.38,98.75522891]
[1758183261773,0.76,245.39,245.38,98.75522891]
[1758183262568,0.06,245.39,245.38,98.75522891]
[1758183263595,0.76,245.39,245.38,98.47090577]
[1758183263889,0.06,245.39,245.38,98.61306734]
[1758183264089,0.06,245.39,245.38,99.23522891]
[1758183265575,0.06,245.39,245.38,130.95522891]
[1758183265769,0.06,245.39,245.38,130.50522891]
[1758183267996,0.76,245.39,245.38,126.42991715]
[1758183268294,0.76,245.39,245.38,94.42559401]
[1758183268480,0.76,245.39,245.38,94.56775558]
[1758183268683,0.76,245.39,245.38,94.70991715]
[1758183269591,0.76,245.39,245.38,13.90991715]
[1758183269796,0.06,245.39,245.38,13.90991715]
[1758183272902,0.65,245.45,245.43,0.28432314]
[1758183273087,0.1,245.49,245.46,0.28432314]
[1758183273686,0.65,245.48,245.46,0.28432314]
[1758183274978,0.1,245.49,245.46,0.28432314]
[1758183275179,0.65,245.47,245.46,0.28432314]
[1758183275699,0.65,245.47,245.45,0.28432314]
[1758183275888,0.1,245.49,245.45,4.35842516]
[1758183276193,0.65,245.47,245.45,4.35842516]
[1758183276405,0.65,245.46,245.45,4.35842516]
[1758183277004,0.65,245.48,245.45,4.35842516]
[1758183277497,0.65,245.47,245.45,4.35842516]
[1758183277876,0.65,245.46,245.45,4.35842516]
[1758183280101,0.1,245.49,245.45,4.35842516]
[1758183280285,0.1,245.49,245.47,0.28432314]
[1758183280598,0.1,245.49,245.48,13.59559401]
[1758183281098,0.75,245.49,245.48,13.59559401]
[1758183281405,0.75,245.49,245.48,17.66924563]
[1758183282479,0.1,245.49,245.48,18.40356877]
[1758183282675,0.1,245.49,245.48,17.95356877]
[1758183283481,0.16,245.49,245.48,17.95356877]
[1758183285712,0.16,245.49,245.48,49.59356877]
[1758183287394,0.16,245.49,245.48,50.04356877]
[1758183287606,0.16,245.49,245.48,49.59356877]
[1758183287814,0.81,245.49,245.48,45.23559401]
[1758183288124,0.81,245.49,245.48,13.59559401]
[1758183288302,0.81,245.49,245.48,0.14216157]
[1758183288815,0.81,245.49,245.48,0.28432314]
[1758183289118,0.81,245.49,245.41,4.07473251]
[1758183289308,0.81,245.49,245.42,31.62]
[1758183289619,0.81,245.49,245.45,13.73775558]
[1758183289808,0.16,245.49,245.46,0.14216157]
[1758183290118,0.65,245.48,245.46,0.14216157]
[1758183291498,0.65,245.48,245.47,13.87991715]
[1758183292720,0.16,245.49,245.47,0.28432314]
[1758183292900,0.65,245.48,245.47,0.28432314]
[1758183295198,0.16,245.49,245.48,0.14216157]
[1758183296227,0.84,245.49,245.48,0.14216157]
[1758183296608,0.16,245.49,245.48,13.87991715]
[1758183296924,0.84,245.49,245.48,13.87991715]
[1758183297336,0.16,245.49,245.48,13.87991715]
[1758183297929,0.84,245.49,245.48,13.87991715]
[1758183298231,0.1,245.59,245.52,26.0]
[1758183298529,0.1,245.59,245.58,0.14216157]
[1758183298735,0.1,245.59,245.58,45.75775558]
[1758183299212,0.1,245.59,245.58,45.89991715]
[1758183299916,0.1,245.59,245.58,49.97190998]
[1758183300311,0.78,245.59,245.58,49.97190998]
[1758183301007,0.1,245.59,245.58,49.97190998]
[1758183302714,0.16,245.59,245.58,49.97190998]
[1758183303206,0.87,245.59,245.58,45.89991715]
[1758183303528,0.87,245.59,245.58,13.87991715]
[1758183306741,0.16,245.59,245.58,13.87991715]
[1758183307643,0.06,245.62,245.6,0.14216157]
[1758183307923,0.06,245.64,245.63,39.59559401]
[1758183308127,0.06,245.64,245.63,71.87991715]
[1758183308533,20.0,245.81,245.63,71.87991715]
[1758183308534,0.71,245.86,245.72,13.59559401]
[1758183308712,0.71,245.81,245.78,13.87991715]
[1758183309203,0.71,245.81,245.78,46.05991715]
[1758183310229,0.71,245.83,245.78,46.05991715]
[1758183313204,26.0,245.92,245.78,46.05991715]
[1758183313205,0.71,245.86,245.78,46.24991715]
[1758183313422,0.71,245.86,245.82,13.59559401]
[1758183313623,12.46186899,245.95,245.84,0.28432314]
[1758183313624,0.71,245.88,245.84,0.28432314]
[1758183313830,0.71,245.87,245.84,0.28432314]
[1758183314023,4.77723223,245.87,245.84,0.28432314]
[1758183314431,0.71,245.86,245.84,0.28432314]
[1758183314738,0.71,245.85,245.83,13.87991715]
[1758183314936,4.06723223,245.87,245.83,13.87991715]
[1758183314937,0.71,245.84,245.83,13.87991715]
[1758183315141,0.71,245.84,245.83,0.28432314]
[1758183316130,0.71,245.84,245.7,0.19]
[1758183316338,0.71,245.83,245.76,13.59559401]
[1758183316737,4.06760742,245.85,245.76,13.59559401]
[1758183316738,0.71,245.82,245.79,0.28432314]
[1758183316926,4.06721209,245.87,245.81,0.14216157]
[1758183317132,0.71,245.82,245.81,0.14216157]
[1758183317339,0.71,245.82,245.81,0.28432314]
[1758183321743,0.71,245.85,245.81,0.28432314]
[1758183321933,0.71,245.84,245.81,0.28432314]
[1758183322457,0.71,245.83,245.8,13.59559401]
[1758183322738,0.71,245.82,245.8,13.59559401]
[1758183323038,0.71,245.81,245.79,0.03]
[1758183323441,0.71,245.81,245.76,0.03]
[1758183323744,6.36593476,245.77,245.76,0.03]
[1758183324430,4.77884485,245.77,245.76,0.03]
[1758183324740,7.07593476,245.77,245.76,0.03]
[1758183326448,4.77884485,245.77,245.76,0.03]
[1758183326661,0.71,245.77,245.76,0.03]
[1758183328956,4.06841644,245.8,245.76,0.03]
[1758183329123,0.71,245.77,245.76,0.03]
[1758183329858,4.06864474,245.79,245.76,0.03]
[1758183330038,4.77864474,245.79,245.76,0.03]
[1758183330241,0.71,245.78,245.76,0.03]
[1758183330626,0.71,245.77,245.76,0.03]
[1758183331931,4.77884485,245.77,245.76,0.03]
[1758183332331,7.07593476,245.77,245.76,0.03]
[1758183333137,4.77884485,245.77,245.76,0.03]
[1758183334061,0.71,245.77,245.76,0.03]
[1758183340051,0.65,245.81,245.76,0.03]
[1758183340864,6.36494167,245.83,245.76,0.03]
[1758183341163,0.65,245.8,245.76,0.03]
[1758183341336,0.06,245.79,245.76,0.03]
[1758183341867,0.06,245.79,245.76,13.62559401]
[1758183343536,0.65,245.78,245.76,0.03]
[1758183343755,2.29708991,245.77,245.76,0.03]
[1758183343959,2.94708991,245.77,245.76,0.03]
[1758183344267,0.65,245.77,245.76,0.03]
[1758183345362,0.71,245.79,245.76,0.03]
[1758183345571,0.65,245.78,245.76,0.03]
[1758183345935,0.06,245.79,245.76,0.03]
[1758183346151,0.71,245.79,245.76,0.03]
[1758183346349,0.06,245.79,245.76,0.03]
[1758183346552,0.71,245.79,245.76,0.03]
[1758183347140,0.65,245.78,245.76,0.03]
[1758183348161,0.65,245.77,245.76,0.03]
[1758183350166,0.06,245.79,245.76,0.03]
[1758183350636,0.65,245.78,245.76,0.03]
[1758183350839,0.06,245.79,245.76,0.03]
[1758183351036,0.65,245.78,245.76,0.03]
[1758183351247,0.65,245.77,245.76,0.03]
[1758183353370,0.06,245.79,245.76,0.03]
[1758183355466,0.06,245.79,245.77,13.87991715]
[1758183355847,0.06,245.79,245.78,14.09559401]
[1758183360373,0.75,245.79,245.78,0.5]
[1758183361964,3.04708991,245.79,245.78,0.5]
[1758183362383,4.0686793,245.78,245.76,0.03]
[1758183362553,4.0686793,245.78,245.74,0.03]
[1758183362554,2.29708991,245.77,245.74,0.03]
[1758183362866,2.29708991,245.75,245.74,0.03]
[1758183363358,2.96708991,245.75,245.74,0.03]
[1758183363686,28.96708991,245.75,245.74,0.03]
[1758183364491,7.0362659,245.75,245.74,0.03]
[1758183365895,7.0362659,245.75,245.61,0.8]
[1758183365896,26.0,245.74,245.73,1e-08]
[1758183366059,26.0,245.74,245.61,0.1]
[1758183366060,20.0,245.66,245.61,1e-08]
[1758183366263,20.0,245.66,245.54,0.2]
[1758183366264,28.66550951,245.62,245.54,0.2]
[1758183366473,2.29708991,245.56,245.54,0.2]
[1758183366670,2.29708991,245.55,245.54,0.2]
[1758183366857,2.96708991,245.55,245.54,0.2]
[1758183367554,35.28708991,245.55,245.54,0.2]
[1758183368565,39.35958023,245.55,245.54,0.2]
[1758183368779,7.03958023,245.55,245.54,0.2]
[1758183369083,39.35958023,245.55,245.54,0.2]
[1758183369269,28.29708991,245.52,245.51,0.3]
[1758183369604,30.59417982,245.52,245.51,0.3]
[1758183369777,34.0452908,245.52,245.51,0.3]
[1758183370087,28.14505816,245.52,245.51,0.3]
[1758183370667,0.67,245.55,245.51,0.3]
[1758183371062,27.47505816,245.56,245.51,0.3]
[1758183371063,32.3,245.54,245.51,0.3]
[1758183371262,27.47505816,245.56,245.51,0.3]
[1758183371263,28.14505816,245.56,245.51,0.3]
[1758183371472,32.3,245.54,245.51,0.3]
[1758183371684,32.97,245.54,245.51,0.3]
[1758183371884,0.67,245.53,245.51,0.3]
[1758183372586,2.14505816,245.52,245.51,0.3]
[1758183372893,6.2180461,245.52,245.51,0.3]
[1758183373759,38.4980461,245.52,245.51,0.3]
[1758183374160,4.74298794,245.52,245.51,0.3]
[1758183374380,37.02298794,245.52,245.51,0.3]
[1758183375166,4.74298794,245.52,245.51,0.3]
[1758183375471,37.02298794,245.52,245.51,0.3]
[1758183375683,38.4980461,245.52,245.51,0.3]
[1758183375904,40.43650733,245.52,245.51,0.3]
[1758183376182,8.15650733,245.52,245.51,0.3]
[1758183376769,7.48780554,245.45,245.41,0.1]
[1758183376964,36.53428615,245.45,245.41,0.1]
[1758183377783,0.67,245.44,245.41,0.1]
[1758183377968,4.07428615,245.45,245.41,0.1]
[1758183378286,3.41351939,245.42,245.41,0.1]
[1758183379187,3.41351939,245.44,245.41,0.1]
[1758183379602,3.41351939,245.47,245.41,0.1]
[1758183379765,3.41351939,245.48,245.42,0.7]
[1758183380610,3.41351939,245.47,245.42,0.7]
[1758183380806,3.41351939,245.47,245.41,0.1]
[1758183381097,3.41351939,245.47,245.43,0.7]
[1758183381813,3.41351939,245.46,245.43,0.7]
[1758183382172,4.07394826,245.47,245.43,0.7]
[1758183382380,3.41351939,245.46,245.43,0.7]
[1758183383480,0.67,245.45,245.41,0.1]
[1758183383679,3.41351939,245.44,245.41,0.1]
[1758183384181,3.41351939,245.43,245.41,0.1]
[1758183384692,3.41351939,245.42,245.41,0.1]
[1758183384995,4.08351939,245.42,245.41,0.1]
[1758183385198,14.25902404,245.46,245.41,0.1]
[1758183385199,26.0,245.49,245.41,0.1]
[1758183385391,3.41351939,245.47,245.42,13.59559401]
[1758183385593,3.41351939,245.48,245.43,0.7]
[1758183386786,3.41351939,245.49,245.44,0.7]
[1758183386986,4.08351939,245.49,245.42,14.29559401]
[1758183387503,3.41351939,245.47,245.41,13.97991715]
[1758183387672,3.41351939,245.46,245.41,13.97991715]
[1758183387874,0.67,245.45,245.41,13.97991715]
[1758183388300,0.67,245.45,245.41,0.1]
[1758183388609,7.4878349,245.44,245.41,0.1]
[1758183388777,3.41351939,245.42,245.41,0.1]
[1758183389182,4.08351939,245.42,245.41,0.1]
[1758183390691,8.15816693,245.42,245.41,0.1]
[1758183394693,40.47816693,245.42,245.41,0.1]
[1758183394900,37.06464754,245.42,245.41,0.1]
[1758183395098,40.47816693,245.42,245.41,0.1]
[1758183395610,40.47816693,245.42,245.41,0.13]
[1758183396685,10.89392563,245.49,245.41,0.83]
[1758183396988,3.41351939,245.45,245.41,0.13]
[1758183397395,4.12351939,245.45,245.41,0.13]
[1758183397700,0.71,245.44,245.41,0.13]
[1758183397912,4.12351939,245.43,245.41,0.13]
[1758183398110,0.71,245.43,245.41,0.13]
[1758183398625,4.07448152,245.43,245.41,0.13]
[1758183398806,42.80412905,245.48,245.41,0.83]
[1758183399007,42.80412905,245.48,245.41,0.13]
[1758183399803,4.07413327,245.46,245.41,0.13]
[1758183400217,14.25778067,245.48,245.41,0.13]
[1758183400422,46.87778067,245.48,245.41,0.13]
[1758183401300,4.07365162,245.48,245.41,0.13]
[1758183401710,4.07365162,245.48,245.42,0.7]
[1758183402393,4.07345825,245.5,245.42,0.7]
[1758183402593,0.06,245.51,245.43,13.59559401]
[1758183402824,4.13321483,245.51,245.44,0.7]
[1758183403122,4.13321483,245.51,245.42,13.87991715]
[1758183403123,0.71,245.5,245.42,13.87991715]